Cogmind - Beta 17 @@@ ROGUE MODE // 2026.07.10 @ 17:01:12 Player: EN-G1N Result: Self-destructed Performance ------------- Evolutions (4) 2000 Regions Visited (7) 1400 Robots Destroyed (106) 530 Value Destroyed (3706) 3706 Prototype IDs (3) 60 Alien Tech Used (0) 0 Bonus (337) 337 TOTAL SCORE: 8033 Bonus ------- High Alert Combat Kills 337 Cogmind --------- Core Integrity 699/850 Matter 248/300 Energy 160/160 System Corruption 0% Temperature Cool (0) Movement Treading (240) Ox1 Location -6/Factory Parts ------- > --- POWER (2) -------- Light Nuclear Core > --- PROPULSION (3) --- Light Treads Light Treads > --- UTILITY (7) ------ Coolant Injector Large Storage Unit Improved Signal Interpreter Armor Integrity Analyzer > --- WEAPON (3) ------- Gauss Cannon Gauss Cannon Gauss Cannon > --- INVENTORY (15) --- Light Deuterium Engine Improved Heat Sink Advanced Signal Interpreter Advanced Terrain Scanner Weapon Cycler Transmission Jammer Advanced ECM Suite Hardened Light Armor Plating Force Field System Restoration Module Improved Recalibrator Plasma Cannon Heavy Plasma Cannon Peak State ------------ > --- POWER ------------ Light Deuterium Engine Light Nuclear Core > --- PROPULSION ------- Armored Treads Advanced Medium Treads > --- UTILITY ---------- Improved Heat Sink Coolant Injector Large Storage Unit Advanced Sensor Array Improved Signal Interpreter Armor Integrity Analyzer Energy Filter > --- WEAPON ----------- Gatling Laser Gatling Laser Gatling Laser > --- INVENTORY -------- Light Nuclear Core Improved Heat Sink Advanced Terrain Scanner Weapon Cycler Transmission Jammer Advanced ECM Suite Hardened Light Armor Plating Force Field System Restoration Module Gatling Laser Plasma Cannon Gauss Cannon Gauss Cannon Gauss Cannon [Rating: 57] Favorites ----------- Power Light Nuclear Core Engine Ion Engine Power Core Light Nuclear Core Propulsion Armored Wheel Treads Advanced Medium Treads Leg Carbon-fiber Leg Wheel Armored Wheel Utility Improved Heat Sink Device Improved Heat Sink Storage Large Storage Unit Processor Improved Signal Interpreter Protection Hardened Medium Armor Plating Weapon Gauss Cannon Energy Gun Gatling Laser Energy Cannon Heavy Ion Cannon Ballistic Gun High-powered Shotgun Ballistic Cannon Gauss Cannon Build | -11 -10 -10 -8 -7 -7 -7 -6 ------- Run | Yrd Mat Sub Mat Fac Low Low Fac Slots Evolved 8 | . . . 4 2 . . 2 Power 1 | . . . . . . . 1 Propulsion 1 | . . . 1 . . . . Utility 5 | . . . 2 2 . . 1 Weapon 1 | . . . 1 . . . . Parts Attached 73 | 7 7 3 20 25 1 . 10 Power 11 | 1 . . 4 4 . . 2 Engine 6 | 1 . . 3 1 . . 1 Core 5 | . . . 1 3 . . 1 Reactor . | . . . . . . . . Propulsion 14 | 3 2 1 1 4 . . 3 Treads 6 | . . . . 4 . . 2 Leg 1 | . . . . . . . 1 Wheel 7 | 3 2 1 1 . . . . Hover . | . . . . . . . . Flight . | . . . . . . . . Utility 23 | 1 3 1 7 8 1 . 2 Device 14 | . . . 5 7 1 . 1 Storage 3 | 1 2 . . . . . . Processor 3 | . . . 1 1 . . 1 Hackware . | . . . . . . . . Protection 3 | . 1 1 1 . . . . Artifact . | . . . . . . . . Weapon 25 | 2 2 1 8 9 . . 3 Energy Gun 7 | 2 . . 1 3 . . 1 Energy Cannon 1 | . . . . 1 . . . Ballistic Gun 4 | . . . 1 3 . . . Ballistic Cannon 13 | . 2 1 6 2 . . 2 Launcher . | . . . . . . . . Special Weapon . | . . . . . . . . Impact Weapon . | . . . . . . . . Slashing Weapon . | . . . . . . . . Piercing Weapon . | . . . . . . . . Special Melee Weapon . | . . . . . . . . Unidentified Prototypes 1 | . . . . 1 . . . Parts Lost 34 | . . 3 6 12 1 . 12 Power 5 | . . . 1 2 . . 2 Propulsion 6 | . . 1 1 1 1 . 2 Utility 12 | . . 1 2 5 . . 4 Weapon 11 | . . 1 2 4 . . 4 Highest Loss Streak 7 | . . 3 2 5 1 . 7 To Critical Strikes 1 | . . . . . . . 1 Average Backups 13 | 4 10 12 14 14 14 15 12 Power 1 | . 1 2 1 . 1 2 . Propulsion . | 2 2 1 . . . . . Utility 8 | . 4 5 9 8 7 8 7 Weapon 4 | 1 2 2 3 4 5 5 3 Tool/Special . | . . . . . . . . Unused Backups 31 | 2 4 . 7 2 3 . 13 Power 4 | . . . 3 . . . 1 Propulsion 5 | 2 3 . . . . . . Utility 16 | . . . 2 2 2 . 10 Weapon 6 | . 1 . 2 . 1 . 2 Tool/Special . | . . . . . . . . Average Slot Usage (%) 93 | . 96 98 95 93 96 92 77 Engine 3 | . 14 14 5 . . . 2 Core 4 | . . . 3 5 7 7 6 Treads 8 | . . . . 12 19 15 9 Wheel 12 | . 27 28 23 8 . . . Device 19 | . . . 16 22 30 30 16 Storage 8 | . 14 14 9 7 7 7 6 Processor 4 | . . . . 7 7 7 12 Protection 5 | . 10 14 9 3 . . . Energy Gun 8 | . 7 . 2 5 23 23 12 Ballistic Gun 2 | . . . . 7 . . . Ballistic Cannon 12 | . 20 27 24 7 . . 7 Peak Build Rating 57 | 7 14 14 36 55 55 48 57 Average Rating 37 | 4 12 13 32 42 51 48 44 On Entrance 27 | . 6 14 13 32 55 48 48 Avg Prop Armor Cover (%) 7 | . . . . 7 . . . Naked Turns . | . . . . . . . . Heaviest Build 60 | 14 38 38 60 51 46 43 49 Greatest Support 80 | 26 24 24 36 80 80 50 50 Greatest Overweight (x) 12 | . 1 3 2 3 . . 12 Average Overweight (x) . | . . 1 1 1 . . . Largest Inventory Capacity 15 | 8 15 15 15 15 15 15 15 Average Capacity 14 | 6 12 15 15 15 15 15 15 Most Carried 15 | 8 13 13 15 15 15 15 14 Average Carried 13 | 4 10 12 14 14 14 15 12 Final Capacity 15 | 8 15 15 15 15 15 15 15 Final Carried 15 | 6 13 11 15 15 15 15 13 Class Distribution -------------------- 33% | Gunner 26% | Skirmisher 25% | Tank 14% | Mutant Dominant Class ---------------- Mutant | -10/Materials Mutant | -10/Subcaves Tank | -8/Materials Skirmisher | -7/Factory Gunner | -7/Lower Caves Gunner | -7/Lower Caves Gunner | -6/Factory Resources | -11 -10 -10 -8 -7 -7 -7 -6 ----------- Run | Yrd Mat Sub Mat Fac Low Low Fac Matter Collected 2502 | 270 255 37 1276 438 123 . 103 Remotely . | . . . . . . . . Salvage Created 2552 | 47 224 . 1333 578 126 . 244 Parts 167 | 7 17 . 81 38 12 . 12 Haulers Intercepted 3 | . . . 1 2 . . . Recyclers Shooed . | . . . . . . . . Parts Field Recycled . | . . . . . . . . Retrieved Matter . | . . . . . . . . Parts Self-Destructed 12 | . . . . . 12 . . Prevented . | . . . . . . . . Parts Restored . | . . . . . . . . Kills | -11 -10 -10 -8 -7 -7 -7 -6 ------- Run | Yrd Mat Sub Mat Fac Low Low Fac Combat Hostiles Destroyed 80 | . 6 . 44 18 6 . 6 Guns 18 | . . . 2 8 6 . 2 Cannons 58 | . 6 . 42 9 . . 1 AOE 2 | . . . . 1 . . 1 Classes Destroyed 13 | 1 3 . 4 3 . . 2 Worker 4 | . 1 . . 2 . . 1 Builder 9 | . . . 4 4 . . 1 Tunneler 3 | 2 . . . 1 . . . Hauler 3 | . . . 1 2 . . . Recycler 1 | . . . . 1 . . . Mechanic 1 | . . . . . . . 1 Watcher 5 | . 1 . 2 2 . . . Swarmer 28 | . . . 13 8 6 . 1 Grunt 35 | . 6 . 24 4 . . 1 Duelist 1 | . . . . . . . 1 Sentry 9 | . . . 7 1 . . 1 Hunter 4 | . . . . 2 . . 2 Programmer 3 | . . . . 3 . . . Best Kill Streak 14 | 2 3 . 14 10 3 . 4 Combat Bots Only 11 | . 2 . 11 5 3 . 4 Max Kills in Single Turn 4 | 1 1 . 2 4 1 . 2 Gunslinging . | . . . . . . . . Exploded 1 | . . . . 1 . . 1 Melee . | . . . . . . . . Uniques/NPCs Destroyed . | . . . . . . . . Combat | -11 -10 -10 -8 -7 -7 -7 -6 -------- Run | Yrd Mat Sub Mat Fac Low Low Fac Hostile Shots Fired 486 | . 30 19 150 144 22 . 121 Missed 143 | . 6 4 50 42 3 . 38 Hits 343 | . 24 15 100 102 19 . 83 Melee 4 | . . . . . . . 4 Projectile 339 | . 24 15 100 102 19 . 79 Critical Strikes 11 | . 2 2 3 2 . . 2 Damage Taken 5484 | . 330 318 1369 1861 305 . 1301 Core 509 | . 31 . 91 172 64 . 151 Absorbed by Shields . | . . . . . . . . Core Remaining (%) 84 | 100 . 87 83 . . 66 . Volleys Fired 179 | 2 25 3 85 41 9 . 14 Largest 3 | 2 2 2 3 3 3 . 3 Hottest 240 | 100 100 66 143 140 240 . 240 Shots Fired 482 | 4 50 6 247 119 15 . 41 Gun 135 | 4 2 . 18 70 15 . 26 Cannon 347 | . 48 6 229 49 . . 15 Launcher . | . . . . . . . . Special . | . . . . . . . . Kinetic 389 | . 48 6 229 91 . . 15 Thermal 93 | 4 2 . 18 28 15 . 26 Explosive . | . . . . . . . . Electromagnetic . | . . . . . . . . Robot Hit Streak 25 | 2 8 2 13 12 5 . 25 Robot Miss Streak 6 | 1 5 1 6 6 3 . 3 Penetration Max 1 | . . . 1 . . . 1 Secondary Targets 3 | . . . . . 1 . 2 Max Gunslinging Chain 1 | . . . . . 1 . 1 Shots Hit Robots 277 | 2 29 3 121 78 11 . 33 Core Hits 167 | 2 11 . 68 52 12 . 22 Critical Kills . | . . . . . . . . Critical Parts Destroyed . | . . . . . . . . Critical Strikes 20 | . 2 . 15 2 . . 1 Blast 20 | . 2 . 15 2 . . 1 Melee Attacks . | . . . . . . . . Impact . | . . . . . . . . Slashing . | . . . . . . . . Piercing . | . . . . . . . . Sneak Attacks . | . . . . . . . . Combat Hostiles . | . . . . . . . . Follow-up Attacks . | . . . . . . . . Damage Inflicted 8545 | 25 567 63 3744 2801 245 . 1100 Guns 1971 | 25 . . 207 960 245 . 534 Cannons 5267 | . 567 63 3466 912 . . 259 Explosions 1307 | . . . 71 929 . . 307 Melee . | . . . . . . . . Ramming . | . . . . . . . . Kinetic 5855 | . 567 63 3466 1500 . . 259 Thermal 1454 | 25 . . 278 372 245 . 534 Explosive 1236 | . . . . 929 . . 307 Electromagnetic . | . . . . . . . . Impact . | . . . . . . . . Slashing . | . . . . . . . . Piercing . | . . . . . . . . Highest Corruption 1 | . . . . 1 1 1 . Average Corruption 1 | . . . . 1 1 1 . Corruption Purged . | . . . . . . . . Corruption Blocked . | . . . . . . . . Effects 9 | . . . . 4 3 2 . Message Errors 3 | . . . . . 3 . . Matter Fused 2 | . . . . 1 . 1 . Energy Discharges 2 | . . . . 1 . 1 . Data Loss (minor) 2 | . . . . 2 . . . Overload Shots . | . . . . . . . . Overflow Damage 250 | . 12 . 55 169 . . 14 Projectiles 110 | . 12 . 55 41 . . 2 Explosions 140 | . . . . 128 . . 12 Melee . | . . . . . . . . Knockbacks 59 | . 9 . 31 14 . . 5 Impact . | . . . . . . . . Kinetic 57 | . 8 . 30 14 . . 5 Secondary 2 | . 1 . 1 . . . . Self-Inflicted Damage 649 | . . . 58 458 . . 133 Shots 12 | . . . 2 8 . . 2 Rammed . | . . . . . . . . Targets Rammed . | . . . . . . . . Kicked . | . . . . . . . . Crushed . | . . . . . . . . Highest Temperature 243 | 39 243 . 231 81 203 . 197 Average Temperature 63 | 24 86 . 57 22 101 . 98 Received Heat Transfer 1164 | . 231 36 558 204 . . 135 Effects 6 | . . . 3 . 3 . . Interference 6 | . . . 3 . 3 . . Siege Activations . | . . . . . . . . Martial Activations . | . . . . . . . . Shielding Activations . | . . . . . . . . Robots Disrupted . | . . . . . . . . Combat Hostiles . | . . . . . . . . Robots Corrupted . | . . . . . . . . Combat Hostiles . | . . . . . . . . Parts Fried . | . . . . . . . . Impact Corruptions . | . . . . . . . . Robots Melted 2 | . . . . . . . 2 Combat Hostiles 2 | . . . . . . . 2 Parts Melted 3 | . . . . . . . 3 Heat Transferred 3146 | 74 . . 594 703 550 . 1225 Parts Sabotaged . | . . . . . . . . Parts Stolen . | . . . . . . . . Parts Stripped . | . . . . . . . . Power Chain Reactions 1 | . . . 1 . . . . Alert | -11 -10 -10 -8 -7 -7 -7 -6 ------- Run | Yrd Mat Sub Mat Fac Low Low Fac Maximum Alert Level 3 | . . . 3 3 . . . Low Security (%) 42 | 100 100 . 32 15 . . 100 Level 1 32 | . . . 18 63 . . . Level 2 11 | . . . 23 7 . . . Level 3 13 | . . . 25 12 . . . Level 4 . | . . . . . . . . Level 5 . | . . . . . . . . High Security . | . . . . . . . . Max Security . | . . . . . . . . Peak Influence 971 | 5 108 . 971 901 . . 119 Initial 424 | . . . . 424 . . 119 Average 304 | . 20 . 452 338 . . 61 Influence Increases 3108 | 10 198 . 1435 1107 140 . 218 Destroy 0b10 Robot/C 1600 | . 120 . 880 360 120 . 120 Destroy 0b10 Robot/NC 130 | 10 10 . 35 60 . . 15 Destroy Leader 386 | . 32 . 206 108 20 . 20 Successful Hack 5 | . . . 5 . . . . Disable Machine 660 | . . . 165 450 . . 45 Destroy Structure 267 | . 6 . 114 129 . . 18 Lose Combat Pursuer 60 | . 30 . 30 . . . . Influence Decreases 3037 | 10 98 100 502 1159 663 169 336 Entered New Map 1023 | . . 48 . 509 327 69 70 Time Decay 1717 | 10 98 50 442 530 326 100 161 Lost Part 297 | . . 2 60 120 10 . 105 Squads Dispatched 15 | . . . 8 5 . . 2 Investigation 4 | . . . 3 1 . . . Extermination 3 | . . . . 2 . . 1 Reinforcement 7 | . . . 4 2 . . 1 Assault . | . . . . . . . . Garrison 1 | . . . 1 . . . . Intercept . | . . . . . . . . Searches Triggered . | . . . . . . . . Construction Impeded 4 | . . . 2 1 . . 1 Haulers Reinforced . | . . . . . . . . Active Scanning Responses . | . . . . . . . . Cargo Convoy Interrupts . | . . . . . . . . Stealth | -11 -10 -10 -8 -7 -7 -7 -6 --------- Run | Yrd Mat Sub Mat Fac Low Low Fac Distress Signals 6 | . 2 . 3 . . . 1 Communications Jammed . | . . . . . . . . Distress Signals . | . . . . . . . . Times Spotted 110 | . 11 4 57 24 6 . 8 Peak Tracking Total 6 | . 4 4 6 5 3 . 6 Tactical Retreats 3 | . 2 . 1 . . . . Traps | -11 -10 -10 -8 -7 -7 -7 -6 ------- Run | Yrd Mat Sub Mat Fac Low Low Fac Traps Triggered 5 | . 1 . 2 . . . 2 Indirectly . | . . . . . . . . Trap Hack Attempts . | . . . . . . . . Triggered . | . . . . . . . . Disarmed . | . . . . . . . . Reprogrammed . | . . . . . . . . Reused . | . . . . . . . . Traps Extracted . | . . . . . . . . Installed . | . . . . . . . . Triggered . | . . . . . . . . Machines | -11 -10 -10 -8 -7 -7 -7 -6 ---------- Run | Yrd Mat Sub Mat Fac Low Low Fac Machines Disabled 44 | . . . 11 30 . . 3 Max in Single Turn 5 | . . . 2 5 . . 2 Machines Repaired . | . . . . . . . . Machines Dismantled . | . . . . . . . . Machines Sabotaged . | . . . . . . . . Overloaded Fab Kills . | . . . . . . . . Hacking | -11 -10 -10 -8 -7 -7 -7 -6 --------- Run | Yrd Mat Sub Mat Fac Low Low Fac Machines Accessed 9 | . 1 . 5 2 1 . . Terminals 5 | . 1 . 4 . . . . Fabricators 1 | . . . . 1 . . . Repair Stations . | . . . . . . . . Recycling Units 1 | . . . . 1 . . . Scanalyzers 1 | . . . 1 . . . . Garrison Access . | . . . . . . . . Total Hacks 21 | . 2 . 14 4 1 . . Successful 11 | . . . 8 2 1 . . Failed 10 | . 2 . 6 2 . . . Catastrophic 2 | . . . 1 1 . . . Database Lockouts . | . . . . . . . . Manual 7 | . 2 . 5 . . . . Terminals 11 | . 2 . 9 . . . . Fabricators 2 | . . . . 2 . . . Repair Stations . | . . . . . . . . Recycling Units 2 | . . . . 2 . . . Scanalyzers 5 | . . . 5 . . . . Garrison Access . | . . . . . . . . Terminal Hacks 3 | . . . 2 . 1 . . Robot Analysis 1 | . . . 1 . . . . Prototype ID Bank 1 | . . . 1 . . . . Open Door 1 | . . . . . 1 . . Fabricator Hacks 1 | . . . . 1 . . . Build 1 | . . . . 1 . . . Repair Station Hacks . | . . . . . . . . Recycling Unit Hacks 1 | . . . . 1 . . . Retrieve Components 1 | . . . . 1 . . . Scanalyzer 5 | . . . 5 . . . . Insert Component 2 | . . . 2 . . . . Analyze 1 | . . . 1 . . . . Retrieve Study 2 | . . . 2 . . . . Garrison Access Hacks . | . . . . . . . . Unauthorized Hacks 1 | . . . 1 . . . . Terminals 1 | . . . 1 . . . . Botnet 1 | . . . 1 . . . . Fabricators . | . . . . . . . . Repair Stations . | . . . . . . . . Recycling Units . | . . . . . . . . Scanalyzers . | . . . . . . . . Garrison Access . | . . . . . . . . Data Cores Recovered . | . . . . . . . . Used . | . . . . . . . . Hacking Detections 6 | . 1 . 4 1 . . . Full Trace Events 3 | . . . 2 1 . . . Feedback Events . | . . . . . . . . Feedback Blocked . | . . . . . . . . Robot Schematics Acquired . | . . . . . . . . Robots Built . | . . . . . . . . Authchips . | . . . . . . . . Time . | . . . . . . . . Total Robot Build Rating . | . . . . . . . . Part Schematics Acquired 1 | . . . 1 . . . . Parts Built 2 | . . . . 2 . . . Authchips . | . . . . . . . . Time 117 | . . . . 117 . . . Total Part Build Rating 14 | . . . . 14 . . . Part Studies Acquired 1 | . . . 1 . . . . Parts Repaired . | . . . . . . . . Time . | . . . . . . . . Parts Recycled . | . . . . . . . . Recycled Matter . | . . . . . . . . Retrieved Matter . | . . . . . . . . Retrieved Components 10 | . . . . 10 . . . Parts Scanalyzed 1 | . . . 1 . . . . Part Schematics Acquired 1 | . . . 1 . . . . Parts Damaged . | . . . . . . . . Bothacking | -11 -10 -10 -8 -7 -7 -7 -6 ------------ Run | Yrd Mat Sub Mat Fac Low Low Fac Used RIF Installer . | . . . . . . . . Robots Hacked . | . . . . . . . . Non-combat . | . . . . . . . . Combat . | . . . . . . . . Robot Hacks Applied . | . . . . . . . . Relay Couplers Released 4 | . . . . 4 . . . Programmers 4 | . . . . 4 . . . Fabnet Peak Effective % . | . . . . . . . . Robots Rewired . | . . . . . . . . Allies Hacked . | . . . . . . . . Hacks Repelled . | . . . . . . . . Allies | -11 -10 -10 -8 -7 -7 -7 -6 -------- Run | Yrd Mat Sub Mat Fac Low Low Fac Total Allies . | . . . . . . . . Largest Group . | . . . . . . . . Highest-Rated Group . | . . . . . . . . Highest-Rated Ally . | . . . . . . . . Total Orders . | . . . . . . . . Ally Attacks . | . . . . . . . . Total Damage . | . . . . . . . . Kills . | . . . . . . . . Allies Corrupted . | . . . . . . . . Allies Melted . | . . . . . . . . Intel | -11 -10 -10 -8 -7 -7 -7 -6 ------- Run | Yrd Mat Sub Mat Fac Low Low Fac Active Infowar (turns) 1209 | . . . . 1081 . . 128 Sensors 1209 | . . . . 1081 . . 128 Robot Analysis Total 1 | . . . 1 . . . . Derelict Logs Recovered 2 | . . . . . 2 . . Drone Launches . | . . . . . . . . Drone Recoveries . | . . . . . . . . Exploration | -11 -10 -10 -8 -7 -7 -7 -6 ------------- Run | Yrd Mat Sub Mat Fac Low Low Fac Turns Passed 4670 | 82 423 132 1241 1490 725 205 372 Spaces Moved 2714 | 65 296 108 798 727 444 131 145 Core 9 | 8 . . . . . . 1 Treads 920 | . . . . 214 444 131 131 Legs 13 | . . . . . . . 13 Wheels 1772 | 57 296 108 798 513 . . . Hover . | . . . . . . . . Flight . | . . . . . . . . Fastest Speed 50 | 50 80 105 95 110 153 157 157 Average Speed 123 | 84 95 105 103 123 154 157 195 Slowest Speed 650 | 90 105 135 110 250 157 157 650 Overloaded Moves . | . . . . . . . . Propulsion Burnouts . | . . . . . . . . Robots Hopped . | . . . . . . . . Potential Cave-ins . | . . . . . . . . Cave-ins Triggered . | . . . . . . . . Exploration Rate (%) 31 | 3 53 11 77 21 57 21 6 Regions Visited 7 Branch Regions 3 Pre-discovered Areas 1 | . . 1 . . . . . Known Exits Taken 3 | . . . . 1 1 1 . Unknown Exits Taken 4 | 1 1 1 1 . . . . Scrap Searched 9 | . . . . . 9 . . Spaces Dug . | . . . . . . . . Terrain Destroyed 265 | . 3 . 108 126 . . 28 Melee . | . . . . . . . . Projectile 115 | . 3 . 104 4 . . 4 AOE 149 | . . . 4 122 . . 23 Terrain Rammed . | . . . . . . . . Walls Destroyed . | . . . . . . . . Machines Disabled . | . . . . . . . . Actions | -11 -10 -10 -8 -7 -7 -7 -6 --------- Run | Yrd Mat Sub Mat Fac Low Low Fac Total 3649 | 89 387 120 1029 1228 469 130 197 Wait 541 | . 37 6 84 403 2 . 9 Move 2707 | 64 295 107 797 726 443 130 145 Hop . | . . . . . . . . Pick Up 87 | 13 11 1 25 20 7 . 10 Fast Attach 12 | 1 6 . 1 4 . . . Attach 43 | 5 . 3 9 14 1 . 11 Detach . | . . . . . . . . Swap 25 | 1 3 . 11 9 . . 1 Drop 50 | 3 10 . 17 11 7 . 2 Fire 179 | 2 25 3 85 41 9 . 14 Melee . | . . . . . . . . Ram . | . . . . . . . . Kick . | . . . . . . . . Crush . | . . . . . . . . Escape Stasis 5 | . . . . . . . 5 Rewire . | . . . . . . . . Trap . | . . . . . . . . Miscellaneous . | . . . . . . . . Route ------- -11/Scrapyard -10/Materials (discovered 3 exits: [*Mat] / [*Min] / [*Sub]) -10/Subcaves -8/Materials -7/Factory -7/Lower Caves -7/Lower Caves -6/Factory History --------- Turn | Location | Event 11 | -11/Scrapyard | Discovered new exit (range 16) 83 | -11/Scrapyard | Entered Materials 302 | -10/Materials | Build established: Mutant 304 | -10/Materials | Discovered new exit (range 8) 430 | -10/Materials | Discovered new exit (range 13) 491 | -10/Materials | Discovered new exit (range 9) 506 | -10/Materials | Entered Subcaves 507 | -10/Subcaves | Approached by a straggling Scientist 513 | -10/Subcaves | Discovered new exit (range 16) 563 | -10/Subcaves | Learned location of Zion (-7) 563 | -10/Subcaves | Met a Zionite searching for "candidates" 638 | -10/Subcaves | Entered Materials 638 | -8/Materials | Evolved 4 slots: Propulsion x1, Utility x2, Weapon x1 666 | -8/Materials | Lost 3 parts (1n1u1w) 1079 | -8/Materials | Build established: Tank 1357 | -8/Materials | Destroyed 10 combat bots 1654 | -8/Materials | Garrison activated, responded to threat 1736 | -8/Materials | Destroyed 11 combat bots 1780 | -8/Materials | Discovered new exit (range 16) 1879 | -8/Materials | Entered Factory 1879 | -7/Factory | Evolved 2 slots: Utility x2 2181 | -7/Factory | Build established: Skirmisher 2755 | -7/Factory | Fabricated Adv. Medium Treads (x2) 3205 | -7/Factory | Lost 5 parts (1p2u2w) 3314 | -7/Factory | Discovered new exit (range 5) 3320 | -7/Factory | Identified exit to Lower Caves 3369 | -7/Factory | Entered Lower Caves 3381 | -7/Lower Caves | Build established: Gunner 3615 | -7/Lower Caves | Learned Factory terminal intel 3641 | -7/Lower Caves | Found DCF Scrap (13 items) 3868 | -7/Lower Caves | Encountered a Warlord checkpoint 3922 | -7/Lower Caves | Discovered new exit (range 14) 4093 | -7/Lower Caves | Identified exit to Lower Caves 4094 | -7/Lower Caves | Entered another Lower Caves area 4278 | -7/Lower Caves | Discovered new exit (range 15) 4297 | -7/Lower Caves | Identified exit to Factory 4299 | -7/Lower Caves | Entered Factory 4299 | -6/Factory | Evolved 2 slots: Power x1, Utility x1 4300 | -6/Factory | Loaded intel: 24 terminal locations 4508 | -6/Factory | Lost 7 parts (2p2n2u1w) 4578 | -6/Factory | Lost 5 parts (2u3w) 4671 | -6/Factory | Self-destructed Last Messages --------------- 04596_ Acquired Adv. Signal Interpreter. 04597_ Nuclear Reactor explodes. 04597_ H-66 Slayer destroyed. 04597_ Destroyed Recalibrator. 04597_ M-13 Machinist destroyed. 04600_ Nuclear Reactor explodes. 04600_ ALERT: Security rotation in progress. 04600_ Repair Station disabled. 04600_ Backup Propulsion I tumbles out of repair station. 04600_ Backup Plating I tumbles out of repair station. 04600_ Backup Propulsion I tumbles out of repair station. 04600_ Backup Power I tumbles out of repair station. 04600_ K-01 Serf destroyed. 04602_ The unstable cave ceiling collapses. 04603_ Acquired Hvy. Plasma Cannon. 04604_ K-01 Serf collects debris. Map ----- +----------------------------------------------------+ | ????????????????????????????????????? | | ????????????????????????????????????? | | ????????????????????????????????????? | | ????????????????????????????????????? | | ????????????????????????????????????? | | ????????????????????????????????????? | | ????????????????????????????????????? | | ????????????????????????????????????? | | ????????????????????????????????????? | | ????????????????????????????????????? | | ????????????# ??????????????????????? | | ???????????? ??????????????????????? | | ???????????? T?????????????????????? | | ???????????? ##########????????????? | | ???????????? # #???????????? | | ???????????? # * #???????????? | | ???????????? # #???????????? | | ???????????? !# #???????????? | | ????????#???# # [! #??????????? | | ???????? ??# #?? #??????????? | | ???????"""??# +???? #?????????? | | ???????""""?# #?????? #?????????# | | ?????? """"?# #########+########## | | ?????? """" # ^ | | ?????" """" # | | ?????" """" @ | | ??? # | | # # | | # ?####+#############+### | | # ! ! ?????????# #?## | | # ??????????#""" #??? | | # ??????????#"R! #??? | | #########???????????#" = #??? | | ????????????????????# * %!#??? | | ????????????????????# #??? | | ????????????????????# #??? | | ????????????????????# ##?? | | ????????????????????# #?? | | ????????????????????# ##?? | | ????????????????????# #??? | | ????????????????????# #??? | | ????????????????????# *% ##??? | | ????????????????????### # = ###???? | | ?????????????????????? %*# ?????? | | ??????????????????????### #=####????? | | ?????????????????????????## "#??????? | | ??????????????????????????#![#??????? | | ??????????????????###?????#%##??????? | | ??????????????????# ! ??##=######### | | ??????????????????# #%%=| | +----------------------------------------------------+ Best States ------------- Heat Dissipation 65 Coolant Potential 65 Energy Generation 23 Energy Capacity 265 Matter Stores 300 Matter Capacity 400 Sight Range 16 Robot Scan Range 16 Terrain Scan Density 10 Armor Coverage 225 Evasion (%) 44 Targeting Accuracy 8 Armor Integrity Analysis 30 Recoil Reduction 7 Matter Filtering 30 Energy Filtering 30 Kinecelleration 30 Item Schematics ----------------- Imp. Heat Sink | -8/Materials | Scanalyzed Robot Schematics ------------------ None Fabricated ------------ Adv. Medium Treads | x2 | -7/Factory | Preloaded Repaired ---------- Nothing Studied --------- Arm. Wheel | -8/Materials | Hacked Alien Tech Used ----------------- None Achievements -------------- Botjacking Challenges ------------ None Game ------ Seed StasisElectrostormStreamer Manual? 0 Play Time 00:52:25 Cumulative 58.3 hours Start 2026.07.10 @ 01:25:28 End 2026.07.10 @ 17:01:12 Sessions 3 Manual Loads 0 Difficulty Rogue Special Mode None Game No. 60 Rogue 5 Adventurer 55 Explorer 0 Win Type - Total 1 Types 1/0/0/0/0/0/0/0/0/0 Lore% 33 Gallery% 33 Achievement% 26 Wizard Run 0 Options --------- Layout 1 ASCII 0 Keyboard 0 Movement Mouse Keybinds 0 Fullscreen 2 Font 24/Smallcaps Map View 50x35 Zoom Use 0% Tactical HUD 1 Map Filters NONE Filters NONE Steam 1 RUN: 691197b1-18f9-49f4-81c2-145fb4f36977